[Event "Titled Tuesday Blitz March 01 Late 2022"]
[White "Harvey, Marcus R"]
[Black "Gatterer, Florian"]
[WhiteFideId "400092"]
[BlackFideId "811688"]
[WhiteElo "2485"]
[BlackElo "2218"]
[Result "1-0"]
[Round "01"]
[TimeControl "180+1"]
[Date "2022.03.02"]
[WhiteClock "0:00:11"]
[BlackClock "0:00:03"]

1. c4 {[%clk 0:02:59]}  e5 {[%clk 0:02:58]} 2. Nc3 {[%clk 0:02:58]}  Nf6 {[%clk 0:02:58]} 3. Nf3 {[%clk 0:02:58]}  Nc6 {[%clk 0:02:58]} 4. e3 {[%clk 0:02:57]}  Bb4 {[%clk 0:02:55]} 5. Qc2 {[%clk 0:02:54]}  Bxc3 {[%clk 0:02:54]} 6. Qxc3 {[%clk 0:02:53]}  Qe7 {[%clk 0:02:54]} 7. d4 {[%clk 0:02:53]}  e4 {[%clk 0:02:47]} 8. Nd2 {[%clk 0:02:26]}  d5 {[%clk 0:02:46]} 9. a3 {[%clk 0:02:21]}  a5 {[%clk 0:02:43]} 10. h3 {[%clk 0:02:13]}  h5 {[%clk 0:02:36]} 11. Be2 {[%clk 0:01:59]}  O-O {[%clk 0:02:18]} 12. cxd5 {[%clk 0:01:54]}  Nxd5 {[%clk 0:02:17]} 13. Qc5 {[%clk 0:01:48]}  Qg5 {[%clk 0:01:47]} 14. g4 {[%clk 0:01:30]}  Re8 {[%clk 0:01:20]} 15. h4 {[%clk 0:01:23]}  Qd8 {[%clk 0:01:17]} 16. gxh5 {[%clk 0:01:23]}  Re6 {[%clk 0:00:49]} 17. Bg4 {[%clk 0:01:22]}  b6 {[%clk 0:00:44]} 18. Qc2 {[%clk 0:01:17]}  Nxd4 {[%clk 0:00:42]} 19. exd4 {[%clk 0:01:15]}  e3 {[%clk 0:00:42]} 20. Bxe6 {[%clk 0:01:02]}  exd2+ {[%clk 0:00:42]} 21. Bxd2 {[%clk 0:00:55]}  Bxe6 {[%clk 0:00:40]} 22. O-O-O {[%clk 0:00:49]}  b5 {[%clk 0:00:31]} 23. Rhg1 {[%clk 0:00:45]}  Kh8 {[%clk 0:00:17]} 24. h6 {[%clk 0:00:41]}  g6 {[%clk 0:00:15]} 25. Bg5 {[%clk 0:00:41]}  Qd7 {[%clk 0:00:09]} 26. Qe4 {[%clk 0:00:29]}  Kh7 {[%clk 0:00:08]} 27. Qe5 {[%clk 0:00:27]}  f6 {[%clk 0:00:03]} 28. Bxf6 {[%clk 0:00:26]}  Bf5 {[%clk 0:00:03]} 29. Bh8 {[%clk 0:00:11]} 1-0


[Site "https://www.chess.com"]

[Event "Titled Tuesday Blitz March 01 Late 2022"]
[White "Hoffmann, Asa"]
[Black "Zubritskiy, Artyom"]
[WhiteFideId "2001470"]
[BlackFideId "4181247"]
[WhiteElo "2117"]
[BlackElo "2459"]
[Result "0-1"]
[Round "01"]
[TimeControl "180+1"]
[Date "2022.03.02"]
[WhiteClock "0:00:10"]
[BlackClock "0:00:06"]

1. d4 {[%clk 0:02:55]}  f5 {[%clk 0:02:59]} 2. Nc3 {[%clk 0:02:54]}  Nf6 {[%clk 0:02:58]} 3. Bg5 {[%clk 0:02:52]}  d5 {[%clk 0:02:58]} 4. f3 {[%clk 0:02:52]}  Nbd7 {[%clk 0:02:52]} 5. e4 {[%clk 0:02:49]}  e6 {[%clk 0:02:38]} 6. Bd3 {[%clk 0:02:31]}  h6 {[%clk 0:02:36]} 7. Bh4 {[%clk 0:02:29]}  g5 {[%clk 0:02:34]} 8. Bf2 {[%clk 0:02:28]}  Nb6 {[%clk 0:02:20]} 9. Qe2 {[%clk 0:02:26]}  Bb4 {[%clk 0:02:07]} 10. exf5 {[%clk 0:02:22]}  Qe7 {[%clk 0:02:03]} 11. fxe6 {[%clk 0:02:17]}  Bxe6 {[%clk 0:02:00]} 12. Bg6+ {[%clk 0:02:12]}  Kf8 {[%clk 0:01:29]} 13. Bd3 {[%clk 0:02:07]}  Na4 {[%clk 0:01:28]} 14. Kf1 {[%clk 0:02:01]}  Nxb2 {[%clk 0:01:23]} 15. Nb5 {[%clk 0:01:50]}  Nxd3 {[%clk 0:01:19]} 16. Qxd3 {[%clk 0:01:42]}  c6 {[%clk 0:01:10]} 17. Nc3 {[%clk 0:01:40]}  Kg7 {[%clk 0:01:07]} 18. Nge2 {[%clk 0:01:39]}  Raf8 {[%clk 0:01:03]} 19. Rb1 {[%clk 0:01:35]}  Ba5 {[%clk 0:00:57]} 20. Kg1 {[%clk 0:01:33]}  Qd7 {[%clk 0:00:54]} 21. Ng3 {[%clk 0:01:23]}  h5 {[%clk 0:00:49]} 22. h4 {[%clk 0:01:22]}  g4 {[%clk 0:00:48]} 23. f4 {[%clk 0:01:20]}  b5 {[%clk 0:00:46]} 24. f5 {[%clk 0:01:11]}  Bf7 {[%clk 0:00:46]} 25. Nce2 {[%clk 0:01:10]}  Bc7 {[%clk 0:00:45]} 26. Be3 {[%clk 0:01:04]}  Ne4 {[%clk 0:00:42]} 27. Bg5 {[%clk 0:00:49]}  Re8 {[%clk 0:00:30]} 28. Rf1 {[%clk 0:00:48]}  Rhf8 {[%clk 0:00:24]} 29. Kh2 {[%clk 0:00:34]}  Bg8 {[%clk 0:00:15]} 30. Bf4 {[%clk 0:00:33]}  Bf7 {[%clk 0:00:13]} 31. Bxc7 {[%clk 0:00:29]}  Qxc7 {[%clk 0:00:13]} 32. Nf4 {[%clk 0:00:26]}  Nxg3 {[%clk 0:00:09]} 33. Qxg3 {[%clk 0:00:21]}  Qd8 {[%clk 0:00:08]} 34. Re1 {[%clk 0:00:20]}  Qf6 {[%clk 0:00:08]} 35. Re5 {[%clk 0:00:18]}  Rxe5 {[%clk 0:00:06]} 36. dxe5 {[%clk 0:00:18]}  Qxf5 {[%clk 0:00:07]} 37. Re1 {[%clk 0:00:16]}  Be6 {[%clk 0:00:06]} 38. c3 {[%clk 0:00:10]}  Qxf4 {[%clk 0:00:06]} 0-1


[Site "https://www.chess.com"]

[Event "Titled Tuesday Blitz March 01 Late 2022"]
[White "Holt, Conrad"]
[Black "Ruiz Aguilar, Pablo Alexander"]
[WhiteFideId "2034387"]
[BlackFideId "4401352"]
[WhiteElo "2586"]
[BlackElo "2125"]
[Result "1-0"]
[Round "01"]
[TimeControl "180+1"]
[Date "2022.03.01"]
[WhiteClock "0:00:15"]
[BlackClock "0:00:08"]

1. d4 {[%clk 0:02:55]}  d5 {[%clk 0:02:28]} 2. c4 {[%clk 0:02:55]}  c6 {[%clk 0:02:28]} 3. Nc3 {[%clk 0:02:55]}  Nf6 {[%clk 0:02:28]} 4. e3 {[%clk 0:02:55]}  Bf5 {[%clk 0:02:18]} 5. Qb3 {[%clk 0:02:52]}  Qb6 {[%clk 0:02:13]} 6. Qxb6 {[%clk 0:02:50]}  axb6 {[%clk 0:02:13]} 7. cxd5 {[%clk 0:02:50]}  Nxd5 {[%clk 0:02:11]} 8. Nxd5 {[%clk 0:02:50]}  cxd5 {[%clk 0:02:11]} 9. Nf3 {[%clk 0:02:48]}  Nc6 {[%clk 0:02:11]} 10. Bb5 {[%clk 0:02:47]}  e6 {[%clk 0:02:00]} 11. Ne5 {[%clk 0:02:45]}  Rc8 {[%clk 0:02:00]} 12. g4 {[%clk 0:02:35]}  Be4 {[%clk 0:01:40]} 13. f3 {[%clk 0:02:33]}  Bg6 {[%clk 0:01:40]} 14. h4 {[%clk 0:02:30]}  f6 {[%clk 0:01:39]} 15. h5 {[%clk 0:02:18]}  fxe5 {[%clk 0:01:33]} 16. hxg6 {[%clk 0:02:17]}  exd4 {[%clk 0:01:34]} 17. Rxh7 {[%clk 0:02:13]}  Bb4+ {[%clk 0:01:30]} 18. Ke2 {[%clk 0:02:01]}  Ke7 {[%clk 0:01:24]} 19. Rxg7+ {[%clk 0:01:33]}  Kf6 {[%clk 0:01:24]} 20. Rh7 {[%clk 0:01:33]}  Kxg6 {[%clk 0:01:24]} 21. Bd3+ {[%clk 0:01:27]}  Kf6 {[%clk 0:01:22]} 22. g5+ {[%clk 0:01:01]}  Kxg5 {[%clk 0:01:19]} 23. exd4+ {[%clk 0:00:59]}  Kf6 {[%clk 0:01:19]} 24. Be3 {[%clk 0:00:52]}  Rxh7 {[%clk 0:01:14]} 25. Bxh7 {[%clk 0:00:53]}  Rh8 {[%clk 0:01:14]} 26. Bc2 {[%clk 0:00:50]}  Rh2+ {[%clk 0:01:12]} 27. Kd3 {[%clk 0:00:50]}  Bd6 {[%clk 0:01:10]} 28. a3 {[%clk 0:00:49]}  e5 {[%clk 0:01:05]} 29. dxe5+ {[%clk 0:00:40]}  Nxe5+ {[%clk 0:01:03]} 30. Kc3 {[%clk 0:00:40]}  Bc5 {[%clk 0:00:58]} 31. Bf4 {[%clk 0:00:20]}  Rf2 {[%clk 0:00:57]} 32. Bxe5+ {[%clk 0:00:18]}  Kxe5 {[%clk 0:00:56]} 33. Re1+ {[%clk 0:00:18]}  Kd6 {[%clk 0:00:56]} 34. Bd1 {[%clk 0:00:17]}  b5 {[%clk 0:00:51]} 35. Kb3 {[%clk 0:00:17]}  Bd4 {[%clk 0:00:50]} 36. Be2 {[%clk 0:00:17]}  Rh2 {[%clk 0:00:48]} 37. Kc2 {[%clk 0:00:17]}  Bf2 {[%clk 0:00:44]} 38. Rb1 {[%clk 0:00:15]}  Bc5 {[%clk 0:00:42]} 39. Kd3 {[%clk 0:00:15]}  b4 {[%clk 0:00:42]} 40. axb4 {[%clk 0:00:15]}  Bxb4 {[%clk 0:00:42]} 41. Rg1 {[%clk 0:00:16]}  Bc5 {[%clk 0:00:41]} 42. Rg7 {[%clk 0:00:16]}  b6 {[%clk 0:00:40]} 43. Rg6+ {[%clk 0:00:16]}  Ke5 {[%clk 0:00:39]} 44. Rg5+ {[%clk 0:00:16]}  Kd6 {[%clk 0:00:37]} 45. Rf5 {[%clk 0:00:15]}  Ke6 {[%clk 0:00:37]} 46. Rf4 {[%clk 0:00:15]}  Ke5 {[%clk 0:00:36]} 47. Ra4 {[%clk 0:00:14]}  d4 {[%clk 0:00:31]} 48. Ra8 {[%clk 0:00:14]}  Rf2 {[%clk 0:00:29]} 49. Re8+ {[%clk 0:00:14]}  Kd5 {[%clk 0:00:29]} 50. Rd8+ {[%clk 0:00:15]}  Ke5 {[%clk 0:00:29]} 51. Re8+ {[%clk 0:00:15]}  Kd5 {[%clk 0:00:30]} 52. Rd8+ {[%clk 0:00:15]}  Ke5 {[%clk 0:00:30]} 53. Rb8 {[%clk 0:00:15]}  Kd5 {[%clk 0:00:30]} 54. Ra8 {[%clk 0:00:16]}  Ke5 {[%clk 0:00:30]} 55. Ra4 {[%clk 0:00:16]}  Kd5 {[%clk 0:00:31]} 56. Rc4 {[%clk 0:00:16]}  Ke5 {[%clk 0:00:30]} 57. b4 {[%clk 0:00:16]}  Bd6 {[%clk 0:00:30]} 58. Rxd4 {[%clk 0:00:16]}  Rxe2 {[%clk 0:00:28]} 59. Rxd6 {[%clk 0:00:16]}  Rf2 {[%clk 0:00:24]} 60. Rxb6 {[%clk 0:00:16]}  Rxf3+ {[%clk 0:00:22]} 61. Kc4 {[%clk 0:00:16]}  Rf1 {[%clk 0:00:21]} 62. Kb5 {[%clk 0:00:14]}  Kd5 {[%clk 0:00:21]} 63. Rb8 {[%clk 0:00:13]}  Kd6 {[%clk 0:00:20]} 64. Kb6 {[%clk 0:00:13]}  Kd7 {[%clk 0:00:18]} 65. b5 {[%clk 0:00:14]}  Rf6+ {[%clk 0:00:18]} 66. Kb7 {[%clk 0:00:14]}  Rf7 {[%clk 0:00:09]} 67. b6 {[%clk 0:00:14]}  Kd6+ {[%clk 0:00:09]} 68. Ka6 {[%clk 0:00:14]}  Kc6 {[%clk 0:00:07]} 69. Rc8+ {[%clk 0:00:14]}  Kd6 {[%clk 0:00:07]} 70. b7 {[%clk 0:00:15]}  Rxb7 {[%clk 0:00:06]} 71. Kxb7 {[%clk 0:00:14]}  Kd7 {[%clk 0:00:06]} 72. Rc5 {[%clk 0:00:14]}  Ke6 {[%clk 0:00:07]} 73. Kc6 {[%clk 0:00:14]}  Kf6 {[%clk 0:00:07]} 74. Kd6 {[%clk 0:00:14]}  Kf7 {[%clk 0:00:07]} 75. Rf5+ {[%clk 0:00:14]}  Kg6 {[%clk 0:00:07]} 76. Ke6 {[%clk 0:00:14]}  Kg7 {[%clk 0:00:08]} 77. Rg5+ {[%clk 0:00:15]}  Kh6 {[%clk 0:00:08]} 78. Kf6 {[%clk 0:00:15]}  Kh7 {[%clk 0:00:09]} 79. Rh5+ {[%clk 0:00:15]}  Kg8 {[%clk 0:00:09]} 80. Rh6 {[%clk 0:00:15]}  Kf8 {[%clk 0:00:08]} 81. Rh8# {[%clk 0:00:15]} 1-0


[Site "https://www.chess.com"]

[Event "Titled Tuesday Blitz March 01 Late 2022"]
[White "Jacobson, Brandon"]
[Black "Domingo Nunez, Alejandro"]
[WhiteFideId "30901561"]
[BlackFideId "22245561"]
[WhiteElo "2362"]
[BlackElo "2215"]
[Result "0-1"]
[Round "01"]
[TimeControl "180+1"]
[Date "2022.03.01"]
[WhiteClock "0:00:25"]
[BlackClock "0:01:02"]

1. Nf3 {[%clk 0:03:00]}  g6 {[%clk 0:02:58]} 2. e4 {[%clk 0:03:00]}  Bg7 {[%clk 0:02:58]} 3. d4 {[%clk 0:03:01]}  c6 {[%clk 0:02:59]} 4. c4 {[%clk 0:03:00]}  d5 {[%clk 0:02:59]} 5. e5 {[%clk 0:03:00]}  Bg4 {[%clk 0:02:59]} 6. Nc3 {[%clk 0:02:58]}  f6 {[%clk 0:02:57]} 7. cxd5 {[%clk 0:02:56]}  cxd5 {[%clk 0:02:58]} 8. h3 {[%clk 0:02:53]}  Bxf3 {[%clk 0:02:54]} 9. Qxf3 {[%clk 0:02:54]}  e6 {[%clk 0:02:54]} 10. exf6 {[%clk 0:02:52]}  Nxf6 {[%clk 0:02:50]} 11. Bb5+ {[%clk 0:02:47]}  Nc6 {[%clk 0:02:50]} 12. Qe2 {[%clk 0:02:46]}  Qd6 {[%clk 0:02:43]} 13. O-O {[%clk 0:02:27]}  O-O {[%clk 0:02:43]} 14. Bxc6 {[%clk 0:02:25]}  bxc6 {[%clk 0:02:42]} 15. Be3 {[%clk 0:02:18]}  Nd7 {[%clk 0:02:38]} 16. Rfd1 {[%clk 0:02:07]}  Rf7 {[%clk 0:02:37]} 17. Rac1 {[%clk 0:02:06]}  Raf8 {[%clk 0:02:37]} 18. Na4 {[%clk 0:02:04]}  e5 {[%clk 0:02:05]} 19. dxe5 {[%clk 0:02:02]}  Bxe5 {[%clk 0:02:05]} 20. Nc5 {[%clk 0:02:01]}  Nf6 {[%clk 0:02:02]} 21. Nd3 {[%clk 0:02:00]}  Ne4 {[%clk 0:01:59]} 22. Nxe5 {[%clk 0:01:22]}  Qxe5 {[%clk 0:02:00]} 23. f3 {[%clk 0:01:22]}  Ng5 {[%clk 0:01:47]} 24. Re1 {[%clk 0:00:45]}  Nxf3+ {[%clk 0:01:13]} 25. gxf3 {[%clk 0:00:44]}  Rxf3 {[%clk 0:01:13]} 26. Qh2 {[%clk 0:00:25]}  Rg3+ {[%clk 0:01:02]} 0-1


[Site "https://www.chess.com"]

[Event "Titled Tuesday Blitz March 01 Late 2022"]
[White "Jones, Gawain C B"]
[Black "Vusatiuk, Vladimir"]
[WhiteFideId "409561"]
[BlackFideId "14118610"]
[WhiteElo "2657"]
[BlackElo "2157"]
[Result "0-1"]
[Round "01"]
[TimeControl "180+1"]
[Date "2022.03.01"]
[WhiteClock "0:00:05"]
[BlackClock "0:00:07"]

1. Nf3 {[%clk 0:02:58]}  Nf6 {[%clk 0:02:58]} 2. g3 {[%clk 0:02:57]}  d5 {[%clk 0:02:57]} 3. Bg2 {[%clk 0:02:57]}  g6 {[%clk 0:02:55]} 4. b3 {[%clk 0:02:57]}  Bg7 {[%clk 0:02:54]} 5. Bb2 {[%clk 0:02:57]}  O-O {[%clk 0:02:54]} 6. c4 {[%clk 0:02:56]}  c5 {[%clk 0:02:38]} 7. cxd5 {[%clk 0:02:54]}  Nxd5 {[%clk 0:02:39]} 8. Bxg7 {[%clk 0:02:53]}  Kxg7 {[%clk 0:02:40]} 9. Qc1 {[%clk 0:02:53]}  Qd6 {[%clk 0:02:30]} 10. Nc3 {[%clk 0:02:44]}  Nxc3 {[%clk 0:02:25]} 11. Qxc3+ {[%clk 0:02:44]}  f6 {[%clk 0:02:25]} 12. Rc1 {[%clk 0:02:42]}  Na6 {[%clk 0:02:16]} 13. d4 {[%clk 0:02:41]}  cxd4 {[%clk 0:02:13]} 14. Nxd4 {[%clk 0:02:30]}  e5 {[%clk 0:02:06]} 15. Nb5 {[%clk 0:02:30]}  Qb6 {[%clk 0:02:04]} 16. Nc7 {[%clk 0:02:14]}  Nxc7 {[%clk 0:02:02]} 17. Qxc7+ {[%clk 0:02:14]}  Qxc7 {[%clk 0:02:03]} 18. Rxc7+ {[%clk 0:02:13]}  Rf7 {[%clk 0:02:01]} 19. Rxf7+ {[%clk 0:02:13]}  Kxf7 {[%clk 0:02:02]} 20. Kd2 {[%clk 0:02:13]}  Ke7 {[%clk 0:01:54]} 21. Rc1 {[%clk 0:02:04]}  Kd6 {[%clk 0:01:54]} 22. f4 {[%clk 0:01:59]}  Rb8 {[%clk 0:01:50]} 23. fxe5+ {[%clk 0:01:59]}  fxe5 {[%clk 0:01:51]} 24. Ke3 {[%clk 0:01:53]}  Bf5 {[%clk 0:01:40]} 25. b4 {[%clk 0:01:53]}  b6 {[%clk 0:01:29]} 26. Rd1+ {[%clk 0:01:46]}  Ke7 {[%clk 0:01:25]} 27. Rc1 {[%clk 0:01:38]}  Kd6 {[%clk 0:01:22]} 28. Be4 {[%clk 0:01:31]}  Be6 {[%clk 0:01:15]} 29. Rd1+ {[%clk 0:01:23]}  Ke7 {[%clk 0:01:14]} 30. Bd5 {[%clk 0:01:24]}  Rd8 {[%clk 0:00:51]} 31. Ke4 {[%clk 0:01:23]}  Kf6 {[%clk 0:00:51]} 32. a3 {[%clk 0:01:11]}  Bg4 {[%clk 0:00:34]} 33. Ke3 {[%clk 0:01:00]}  Be6 {[%clk 0:00:31]} 34. Rf1+ {[%clk 0:00:59]}  Ke7 {[%clk 0:00:31]} 35. Bxe6 {[%clk 0:00:57]}  Kxe6 {[%clk 0:00:32]} 36. Rc1 {[%clk 0:00:57]}  Rd4 {[%clk 0:00:20]} 37. Rc7 {[%clk 0:00:55]}  Rd7 {[%clk 0:00:20]} 38. Rc8 {[%clk 0:00:34]}  Kd5 {[%clk 0:00:19]} 39. g4 {[%clk 0:00:32]}  Rf7 {[%clk 0:00:18]} 40. Kd3 {[%clk 0:00:17]}  Kd6 {[%clk 0:00:16]} 41. Rh8 {[%clk 0:00:14]}  Kd5 {[%clk 0:00:15]} 42. h3 {[%clk 0:00:11]}  Rd7 {[%clk 0:00:14]} 43. e3 {[%clk 0:00:10]}  e4+ {[%clk 0:00:11]} 44. Kc3 {[%clk 0:00:09]}  Rc7+ {[%clk 0:00:11]} 45. Kb2 {[%clk 0:00:09]}  Ke5 {[%clk 0:00:10]} 46. Re8+ {[%clk 0:00:08]}  Kd5 {[%clk 0:00:11]} 47. Rd8+ {[%clk 0:00:07]}  Ke5 {[%clk 0:00:11]} 48. b5 {[%clk 0:00:07]}  Rf7 {[%clk 0:00:09]} 49. Re8+ {[%clk 0:00:06]}  Kd5 {[%clk 0:00:09]} 50. Rd8+ {[%clk 0:00:06]}  Kc5 {[%clk 0:00:10]} 51. Re8 {[%clk 0:00:04]}  Kxb5 {[%clk 0:00:07]} 52. Rxe4 {[%clk 0:00:03]}  Rf3 {[%clk 0:00:07]} 53. h4 {[%clk 0:00:03]}  Rh3 {[%clk 0:00:04]} 54. g5 {[%clk 0:00:03]}  Kc5 {[%clk 0:00:03]} 55. Kc3 {[%clk 0:00:04]}  Kd5 {[%clk 0:00:04]} 56. Kd3 {[%clk 0:00:04]}  b5 {[%clk 0:00:02]} 57. Re7 {[%clk 0:00:03]}  Rxh4 {[%clk 0:00:02]} 58. Rxa7 {[%clk 0:00:04]}  Rh5 {[%clk 0:00:02]} 59. Rb7 {[%clk 0:00:03]}  Kc6 {[%clk 0:00:03]} 60. Rf7 {[%clk 0:00:03]}  Rxg5 {[%clk 0:00:03]} 61. Rxh7 {[%clk 0:00:03]}  Rd5+ {[%clk 0:00:04]} 62. Ke4 {[%clk 0:00:04]}  Rc5 {[%clk 0:00:04]} 63. Rh6 {[%clk 0:00:04]}  Rc4+ {[%clk 0:00:05]} 64. Ke5 {[%clk 0:00:05]}  Ra4 {[%clk 0:00:05]} 65. Rxg6+ {[%clk 0:00:05]}  Kc5 {[%clk 0:00:05]} 66. Rg8 {[%clk 0:00:05]}  Rxa3 {[%clk 0:00:05]} 67. Rc8+ {[%clk 0:00:05]}  Kb6 {[%clk 0:00:06]} 68. e4 {[%clk 0:00:05]}  b4 {[%clk 0:00:05]} 69. Kd4 {[%clk 0:00:06]}  Kb7 {[%clk 0:00:03]} 70. Rc4 {[%clk 0:00:05]}  Rb3 {[%clk 0:00:03]} 71. Ke5 {[%clk 0:00:04]}  Rb1 {[%clk 0:00:03]} 72. Kd4 {[%clk 0:00:03]}  b3 {[%clk 0:00:03]} 73. Kc3 {[%clk 0:00:01]}  b2 {[%clk 0:00:03]} 74. Kc2 {[%clk 0:00:01]}  Rc1+ {[%clk 0:00:03]} 75. Kd2 {[%clk 0:00:01]}  Rxc4 {[%clk 0:00:03]} 76. Kd3 {[%clk 0:00:02]}  Rc6 {[%clk 0:00:03]} 77. Kd4 {[%clk 0:00:02]}  b1=Q {[%clk 0:00:03]} 78. Kd5 {[%clk 0:00:03]}  Qb4 {[%clk 0:00:04]} 79. Ke5 {[%clk 0:00:04]}  Qc5+ {[%clk 0:00:04]} 80. Kf4 {[%clk 0:00:05]}  Rf6+ {[%clk 0:00:05]} 81. Kg4 {[%clk 0:00:05]}  Rf7 {[%clk 0:00:05]} 82. e5 {[%clk 0:00:05]}  Qf8 {[%clk 0:00:05]} 83. e6 {[%clk 0:00:04]}  Qg8+ {[%clk 0:00:06]} 84. Kh5 {[%clk 0:00:05]}  Rh7# {[%clk 0:00:07]} 0-1


[Site "https://www.chess.com"]

[Event "Titled Tuesday Blitz March 01 Late 2022"]
[White "Kaasen, Tor Fredrik"]
[Black "Balint, Vilmos"]
[WhiteFideId "1516647"]
[BlackFideId "718050"]
[WhiteElo "2335"]
[BlackElo "2059"]
[Result "1-0"]
[Round "01"]
[TimeControl "180+1"]
[Date "2022.03.02"]
[WhiteClock "0:00:35"]
[BlackClock "0:00:30"]

1. d4 {[%clk 0:02:59]}  Nf6 {[%clk 0:02:58]} 2. c4 {[%clk 0:02:59]}  e6 {[%clk 0:02:58]} 3. g3 {[%clk 0:02:59]}  Bb4+ {[%clk 0:02:57]} 4. Bd2 {[%clk 0:02:59]}  c5 {[%clk 0:02:55]} 5. Bg2 {[%clk 0:02:56]}  O-O {[%clk 0:02:45]} 6. Nf3 {[%clk 0:02:53]}  d6 {[%clk 0:02:40]} 7. Bxb4 {[%clk 0:02:52]}  cxb4 {[%clk 0:02:39]} 8. O-O {[%clk 0:02:53]}  Qe7 {[%clk 0:02:33]} 9. a3 {[%clk 0:02:49]}  Nc6 {[%clk 0:02:29]} 10. axb4 {[%clk 0:02:48]}  Nxb4 {[%clk 0:02:30]} 11. Nc3 {[%clk 0:02:48]}  a5 {[%clk 0:02:29]} 12. Nd2 {[%clk 0:02:15]}  Ra6 {[%clk 0:02:15]} 13. e4 {[%clk 0:02:13]}  e5 {[%clk 0:02:15]} 14. dxe5 {[%clk 0:02:12]}  dxe5 {[%clk 0:02:15]} 15. Nd5 {[%clk 0:02:12]}  Nfxd5 {[%clk 0:02:08]} 16. cxd5 {[%clk 0:02:00]}  b6 {[%clk 0:01:59]} 17. Nc4 {[%clk 0:01:56]}  Rd8 {[%clk 0:01:49]} 18. Qh5 {[%clk 0:01:49]}  f6 {[%clk 0:01:46]} 19. Rfd1 {[%clk 0:01:49]}  g6 {[%clk 0:01:46]} 20. Qe2 {[%clk 0:01:38]}  Qc5 {[%clk 0:01:12]} 21. Rac1 {[%clk 0:01:38]}  Na2 {[%clk 0:01:13]} 22. Rc2 {[%clk 0:01:32]}  Nb4 {[%clk 0:01:13]} 23. Rcd2 {[%clk 0:01:25]}  Bd7 {[%clk 0:01:10]} 24. Bf1 {[%clk 0:01:05]}  Ba4 {[%clk 0:01:09]} 25. Ra1 {[%clk 0:00:50]}  Bb5 {[%clk 0:01:05]} 26. Qe3 {[%clk 0:00:50]}  Bxc4 {[%clk 0:00:43]} 27. Qxc5 {[%clk 0:00:49]}  bxc5 {[%clk 0:00:44]} 28. Bxc4 {[%clk 0:00:50]}  Ra7 {[%clk 0:00:44]} 29. d6+ {[%clk 0:00:47]}  Kf8 {[%clk 0:00:45]} 30. Bb5 {[%clk 0:00:43]}  Kf7 {[%clk 0:00:40]} 31. Rc1 {[%clk 0:00:42]}  Ke6 {[%clk 0:00:34]} 32. d7 {[%clk 0:00:42]}  Rc7 {[%clk 0:00:33]} 33. Rcd1 {[%clk 0:00:35]}  Nc6 {[%clk 0:00:30]} 34. Rd6+ {[%clk 0:00:35]}  Ke7 {[%clk 0:00:30]} 35. Bxc6 {[%clk 0:00:35]} 1-0


[Site "https://www.chess.com"]

[Event "Titled Tuesday Blitz March 01 Late 2022"]
[White "Kamsky, Gata"]
[Black "Batsiashvili, Nino"]
[WhiteFideId "2000024"]
[BlackFideId "13602993"]
[WhiteElo "2645"]
[BlackElo "2230"]
[Result "1-0"]
[Round "01"]
[TimeControl "180+1"]
[Date "2022.03.01"]
[WhiteClock "0:00:47"]
[BlackClock "0:00:11"]

1. e4 {[%clk 0:02:59]}  e5 {[%clk 0:02:58]} 2. Nf3 {[%clk 0:02:59]}  Nc6 {[%clk 0:02:58]} 3. Bb5 {[%clk 0:02:58]}  a6 {[%clk 0:02:58]} 4. Ba4 {[%clk 0:02:58]}  Nf6 {[%clk 0:02:58]} 5. O-O {[%clk 0:02:58]}  b5 {[%clk 0:02:58]} 6. Bb3 {[%clk 0:02:58]}  Bc5 {[%clk 0:02:59]} 7. c3 {[%clk 0:02:57]}  d6 {[%clk 0:02:59]} 8. a4 {[%clk 0:02:57]}  Rb8 {[%clk 0:02:58]} 9. axb5 {[%clk 0:02:55]}  axb5 {[%clk 0:02:58]} 10. d4 {[%clk 0:02:55]}  Bb6 {[%clk 0:02:57]} 11. h3 {[%clk 0:02:55]}  O-O {[%clk 0:02:55]} 12. Re1 {[%clk 0:02:55]}  h6 {[%clk 0:02:42]} 13. Be3 {[%clk 0:02:54]}  exd4 {[%clk 0:02:36]} 14. cxd4 {[%clk 0:02:44]}  Re8 {[%clk 0:02:30]} 15. d5 {[%clk 0:02:42]}  Ne5 {[%clk 0:02:27]} 16. Bxb6 {[%clk 0:02:35]}  Rxb6 {[%clk 0:02:28]} 17. Nxe5 {[%clk 0:02:32]}  Rxe5 {[%clk 0:02:28]} 18. Nd2 {[%clk 0:02:21]}  Bd7 {[%clk 0:02:20]} 19. f4 {[%clk 0:02:09]}  Re8 {[%clk 0:02:19]} 20. Qf3 {[%clk 0:02:02]}  c6 {[%clk 0:02:01]} 21. dxc6 {[%clk 0:01:44]}  Bxc6 {[%clk 0:02:02]} 22. Qd3 {[%clk 0:01:39]}  Qb8 {[%clk 0:01:50]} 23. Qd4 {[%clk 0:01:30]}  Nd7 {[%clk 0:01:48]} 24. Kh1 {[%clk 0:01:16]}  Nc5 {[%clk 0:01:48]} 25. Bc2 {[%clk 0:01:13]}  Rb7 {[%clk 0:01:43]} 26. b4 {[%clk 0:01:11]}  Ne6 {[%clk 0:01:38]} 27. Qf2 {[%clk 0:01:11]}  Rbe7 {[%clk 0:01:35]} 28. Bb3 {[%clk 0:01:02]}  Nd8 {[%clk 0:01:20]} 29. f5 {[%clk 0:01:00]}  Bxe4 {[%clk 0:01:16]} 30. f6 {[%clk 0:01:00]}  Re5 {[%clk 0:01:12]} 31. Nxe4 {[%clk 0:00:59]}  Rxe4 {[%clk 0:01:11]} 32. Rxe4 {[%clk 0:00:59]}  Rxe4 {[%clk 0:01:12]} 33. Qg3 {[%clk 0:00:57]}  g5 {[%clk 0:01:00]} 34. Qd3 {[%clk 0:00:56]}  Re6 {[%clk 0:00:33]} 35. Bxe6 {[%clk 0:00:54]}  Nxe6 {[%clk 0:00:34]} 36. Qd5 {[%clk 0:00:52]}  Qe8 {[%clk 0:00:15]} 37. Ra8 {[%clk 0:00:49]}  Nd8 {[%clk 0:00:16]} 38. Qxd6 {[%clk 0:00:48]}  Qe1+ {[%clk 0:00:15]} 39. Kh2 {[%clk 0:00:48]}  Kh7 {[%clk 0:00:16]} 40. Rxd8 {[%clk 0:00:47]}  Qe3 {[%clk 0:00:11]} 41. Qd3+ {[%clk 0:00:46]}  Qxd3 {[%clk 0:00:11]} 42. Rxd3 {[%clk 0:00:47]} 1-0


[Site "https://www.chess.com"]